bitfinex-derivatives/quotes_BTCF0:USTF0_20260131
["timestamp","ask_amount","ask_price","bid_price","bid_amount"]
[1769861509353,0.01207,82984.0,82970.0,0.20607655]
[1769861510038,0.28689664,82992.0,82970.0,0.20607655]
[1769861510239,0.012071,82977.0,82970.0,5.5e-07]
[1769861510442,0.012071,82975.0,82970.0,5.5e-07]
[1769861510949,0.012071,82975.0,82969.0,8e-08]
[1769861511149,0.012072,82967.0,82965.0,0.06768255]
[1769861511343,0.00639352,82967.0,82960.0,0.10856]
[1769861511542,0.28689664,82980.0,82970.0,0.001]
[1769861511839,0.28689664,82980.0,82960.0,0.10856]
[1769861512038,0.28689664,82978.0,82950.0,0.20607655]
[1769861513656,0.28689664,82978.0,82949.0,0.10856]
[1769861513842,0.28689664,82978.0,82939.0,0.39473853]
[1769861514348,0.28789664,82978.0,82939.0,0.39473853]
[1769861515048,0.28689664,82978.0,82939.0,0.39473853]
[1769861515240,0.28789664,82978.0,82939.0,0.1086]
[1769861515444,0.28689664,82976.0,82939.0,0.1086]
[1769861515644,0.28689664,82974.0,82939.0,0.1086]
[1769861515938,0.28689664,82972.0,82939.0,0.1086]
[1769861516139,0.28689664,82972.0,82940.0,0.28613853]
[1769861516651,0.1086,82971.0,82952.0,0.28613853]
[1769861517238,0.39549664,82971.0,82949.0,0.1086]
[1769861517553,0.28689664,82970.0,82949.0,0.1086]
[1769861518950,0.28689664,82970.0,82939.0,0.89209853]
[1769861519851,0.28789664,82970.0,82939.0,0.89209853]
[1769861520050,0.28789664,82970.0,82940.0,0.28613853]
[1769861520251,0.28789664,82970.0,82940.0,0.29821453]
[1769861520452,0.28689664,82970.0,82940.0,0.29821453]
[1769861520651,0.28789664,82970.0,82940.0,0.29821453]
[1769861521051,0.001,82970.0,82950.0,0.28613853]
[1769861521252,0.1086,82971.0,82950.0,0.28613853]
[1769861521449,0.1086,82971.0,82952.0,0.28613853]
[1769861521648,9.258e-05,82973.0,82958.0,0.28613853]
[1769861521853,9.258e-05,82973.0,82959.0,0.012073]
[1769861522054,9.258e-05,82973.0,82960.0,0.28613853]
[1769861523553,0.09184623,82977.0,82960.0,0.28613853]
[1769861523760,0.1086,82984.0,82962.0,0.28613853]
[1769861524153,0.1086,82984.0,82967.0,0.012072]
[1769861524356,0.28689664,82983.0,82960.0,0.28713853]
[1769861524558,0.28689664,82981.0,82960.0,0.28713853]
[1769861525358,0.28689664,82981.0,82960.0,0.001]
[1769861526555,0.28789664,82981.0,82953.0,0.28613853]
[1769861528860,0.28689664,82981.0,82953.0,0.28613853]
[1769861529064,0.28789664,82981.0,82953.0,0.28613853]
[1769861529462,0.28789664,82981.0,82948.0,0.39178321]
[1769861529662,0.28789664,82981.0,82949.0,0.27106821]
[1769861530063,0.28789664,82981.0,82956.0,0.27106821]
[1769861530263,0.28789664,82981.0,82958.0,0.27106821]
[1769861531165,0.28789664,82981.0,82961.0,0.27106821]
[1769861531566,0.001,82981.0,82961.0,0.27106821]
[1769861532665,6.368e-05,82982.0,82961.0,0.27106821]
[1769861532866,0.2861263,82982.0,82959.0,0.10864]
[1769861534068,0.11505257,82981.0,82959.0,0.10864]
[1769861534263,0.40111519,82980.0,82959.0,0.10864]
[1769861534569,0.28606262,82979.0,82959.0,0.10864]
[1769861536073,0.28706262,82979.0,82959.0,0.10864]
[1769861536273,0.28606262,82977.0,82947.0,0.012075]
[1769861536473,0.28606262,82975.0,82945.0,0.10864]
[1769861536674,0.28606262,82973.0,82945.0,0.10864]
[1769861537374,0.28606262,82971.0,82946.0,0.27106821]
[1769861537573,0.90186262,82974.0,82952.0,0.27106821]
[1769861537767,0.28606262,82972.0,82952.0,0.27106821]
[1769861538273,0.11553454,82971.0,82952.0,0.27106821]
[1769861538475,0.11553454,82970.0,82952.0,0.27106821]
[1769861538675,0.28606262,82972.0,82952.0,0.27106821]
[1769861538974,0.28606262,82970.0,82951.0,0.012075]
[1769861539176,0.28606262,82970.0,82947.0,0.012075]
[1769861539372,0.11558466,82969.0,82947.0,0.28314321]
[1769861539567,0.28606262,82970.0,82947.0,0.28314321]
[1769861539876,0.28606262,82970.0,82950.0,0.28314321]
[1769861540276,0.22427422,82969.0,82950.0,0.28314321]
[1769861540478,0.10864,82969.0,82950.0,0.28314321]
[1769861542681,0.28606262,82968.0,82950.0,0.28314321]
[1769861543478,0.28606262,82968.0,82950.0,0.27106821]
[1769861543681,0.28606262,82966.0,82945.0,0.10864]
[1769861543881,0.28606262,82964.0,82945.0,0.10864]
[1769861547177,0.23606262,82964.0,82945.0,0.10864]
[1769861548189,0.11534365,82963.0,82945.0,0.10864]
[1769861548385,0.11527997,82962.0,82945.0,0.10864]
[1769861548685,0.11527997,82961.0,82945.0,0.10864]
[1769861548872,0.11527997,82960.0,82945.0,0.10864]
[1769861549076,0.11527997,82959.0,82945.0,0.10864]
[1769861549275,0.28606262,82962.0,82945.0,0.10864]
[1769861549471,0.28606262,82960.0,82945.0,0.10864]
[1769861549673,0.50996512,82959.0,82945.0,0.10864]
[1769861549884,0.40132512,82958.0,82945.0,0.10864]
[1769861550191,0.28606262,82958.0,82945.0,0.10864]
[1769861551781,0.10864,82959.0,82946.0,0.27106821]
[1769861551982,0.001,82958.0,82946.0,0.27106821]
[1769861552390,0.001,82958.0,82948.0,0.012075]
[1769861552592,0.1057784,82959.0,82949.0,0.27106821]
[1769861552891,0.1057784,82959.0,82951.0,0.27106821]
[1769861553086,6.368e-05,82963.0,82951.0,0.27106821]
[1769861553989,0.001,82959.0,82951.0,0.27106821]
[1769861554183,6.368e-05,82963.0,82951.0,0.27106821]
[1769861554384,0.06970368,82967.0,82951.0,0.27106821]
[1769861554692,0.06970368,82967.0,82951.0,0.28314321]
[1769861554987,0.06970368,82967.0,82951.0,0.28414321]
[1769861555587,0.06970368,82967.0,82951.0,0.28314321]
[1769861555989,0.06970368,82967.0,82955.0,0.27106821]
[1769861556393,0.06970368,82967.0,82957.0,0.27106821]
[1769861556996,0.10864,82972.0,82957.0,0.27106821]
[1769861557387,0.29088713,82971.0,82953.0,0.012074]
[1769861557691,0.29088713,82971.0,82953.0,0.30207623]
[1769861557890,0.10864,82972.0,82953.0,0.30207623]
[1769861558589,0.39952713,82972.0,82953.0,0.30207623]
[1769861558789,0.29088713,82971.0,82953.0,0.29000223]
[1769861558986,0.29188713,82971.0,82950.0,0.30207723]
[1769861559182,0.001,82971.0,82950.0,0.30207723]
[1769861559392,0.001,82971.0,82953.0,0.29000223]
[1769861560201,0.10864,82972.0,82953.0,0.29000223]
[1769861560389,0.10964,82972.0,82953.0,0.29000223]
[1769861560590,0.11441579,82971.0,82953.0,0.29000223]
[1769861560797,0.11441579,82970.0,82953.0,0.29000223]
[1769861560997,0.11441579,82969.0,82953.0,0.29000223]
[1769861561194,0.11441579,82968.0,82953.0,0.29000223]
[1769861561395,0.07564,82972.0,82953.0,0.29000223]
[1769861561590,0.11442458,82971.0,82953.0,0.29000223]
[1769861561794,0.11442458,82970.0,82953.0,0.29000223]
[1769861561995,0.11442458,82969.0,82953.0,0.29000223]
[1769861562197,0.11442458,82968.0,82953.0,0.29000223]
[1769861562397,0.07564,82972.0,82953.0,0.29000223]
[1769861562597,0.11443281,82971.0,82953.0,0.29000223]
[1769861562799,0.11443281,82970.0,82953.0,0.29000223]
[1769861562997,0.11443281,82969.0,82953.0,0.29000223]
[1769861563194,0.07564,82972.0,82955.0,0.2964377]
[1769861563400,0.11444363,82971.0,82957.0,0.2964377]
[1769861563601,0.11444363,82970.0,82957.0,0.2964377]
[1769861563901,0.07564,82972.0,82957.0,0.2964377]
[1769861564102,0.11444276,82971.0,82957.0,0.2964377]
[1769861564401,0.07564,82972.0,82957.0,0.2964377]
[1769861565603,0.45639411,82982.0,82957.0,0.2964377]
[1769861565801,0.39583899,82981.0,82957.0,0.2964377]
[1769861566001,0.11443719,82980.0,82957.0,0.2964377]
[1769861566200,0.11443719,82979.0,82957.0,0.2964377]
[1769861566402,0.2814018,82981.0,82957.0,0.2964377]
[1769861566403,0.11443719,82978.0,82957.0,0.2964377]
[1769861566598,0.11443719,82977.0,82957.0,0.2964377]
[1769861566803,0.11443719,82976.0,82957.0,0.2964377]
[1769861566993,0.11443719,82975.0,82957.0,0.2964377]
[1769861567302,0.11443719,82974.0,82957.0,0.2964377]
[1769861567503,0.11443719,82973.0,82957.0,0.2964377]
[1769861567703,0.11443719,82972.0,82957.0,0.2964377]
[1769861567906,0.11443719,82971.0,82957.0,0.2964377]
[1769861568204,0.11443719,82970.0,82957.0,0.2964377]
[1769861568504,0.2444018,82981.0,82957.0,0.2964377]
[1769861568804,0.11399236,82980.0,82957.0,0.2964377]
[1769861569002,0.11399236,82979.0,82957.0,0.2964377]
[1769861569202,0.11399236,82978.0,82957.0,0.2964377]
[1769861569397,0.11399236,82977.0,82957.0,0.2964377]
[1769861569703,0.11399236,82976.0,82957.0,0.2964377]
[1769861569902,0.11399236,82975.0,82957.0,0.2964377]
[1769861570101,0.11399236,82974.0,82957.0,0.2964377]
[1769861570302,0.11399236,82973.0,82957.0,0.2964377]
[1769861570504,0.2444018,82981.0,82957.0,0.2964377]
[1769861570703,0.11398688,82980.0,82957.0,0.2964377]
[1769861570904,0.001,82976.0,82957.0,0.2964377]
[1769861571096,0.11398688,82975.0,82957.0,0.2964377]
[1769861572507,0.2814018,82973.0,82946.0,0.2964377]
[1769861572706,0.2814018,82971.0,82945.0,0.10864]
[1769861573006,0.2814018,82969.0,82945.0,0.10864]
[1769861573203,0.2814018,82967.0,82945.0,0.10864]
[1769861573395,0.2814018,82965.0,82945.0,0.10864]
[1769861573599,0.2814018,82965.0,82947.0,0.012075]
[1769861573800,0.53312,82969.0,82945.0,0.10864]
[1769861573801,0.53312,82969.0,82950.0,0.2964377]
[1769861574107,0.11397093,82968.0,82950.0,0.2964377]
[1769861574309,0.11397093,82967.0,82952.0,0.2964377]
[1769861574510,0.10964,82971.0,82954.0,0.2964377]
[1769861575106,0.001,82971.0,82954.0,0.2964377]
[1769861575306,0.001,82965.0,82954.0,0.2964377]
[1769861575504,0.10864,82971.0,82954.0,0.2964377]
[1769861575706,0.06464,82971.0,82954.0,0.2964377]
[1769861579817,0.06464,82971.0,82956.0,0.2964377]
[1769861582722,0.3050418,82971.0,82949.0,0.012075]
[1769861582929,0.3050418,82971.0,82945.0,0.10864]
[1769861583328,0.3050418,82971.0,82946.0,0.012075]
[1769861583527,0.3050418,82971.0,82946.0,0.3085127]
[1769861584619,0.3060418,82971.0,82946.0,0.3085127]
[1769861584820,0.3060418,82971.0,82945.0,0.10864]
[1769861585520,0.2814018,82959.0,82945.0,0.10864]
[1769861586523,0.2814018,82959.0,82940.0,0.2964377]
[1769861586727,0.2814018,82954.0,82936.0,0.012077]
[1769861589229,0.2814018,82954.0,82936.0,0.28569118]
[1769861589629,0.2701078,82949.0,82922.0,0.00015277]
[1769861589829,0.2701078,82947.0,82924.0,0.27361418]
[1769861590030,0.2201078,82947.0,82924.0,0.27361418]
[1769861592335,0.64224,82948.0,82924.0,0.27361418]
[1769861592639,0.64224,82948.0,82928.0,0.27361418]
[1769861593139,0.64224,82948.0,82922.0,0.00015277]
[1769861593140,0.10864,82949.0,82932.0,0.27361418]
[1769861593343,0.20663639,82960.0,82932.0,0.27361418]
[1769861593633,0.31796,82965.0,82939.0,0.27361418]
[1769861593934,0.2701078,82963.0,82944.0,0.27361418]
[1769861594640,0.10864,82964.0,82939.0,0.10864]
[1769861594641,0.2701078,82959.0,82939.0,0.10864]
[1769861595837,0.2711078,82959.0,82939.0,0.10864]
[1769861598129,0.2701078,82957.0,82927.0,0.10864]
[1769861598331,0.2701078,82955.0,82927.0,0.10864]
[1769861598638,0.2701078,82953.0,82927.0,0.10864]
[1769861600225,0.2701078,82953.0,82927.0,0.38225418]
[1769861600426,0.2701078,82951.0,82927.0,0.38225418]
[1769861600626,0.2701078,82949.0,82927.0,0.38225418]
[1769861600832,0.2701078,82947.0,82927.0,0.38225418]
[1769861601224,0.2701078,82947.0,82922.0,0.00015277]
[1769861601429,0.2701078,82945.0,82922.0,0.10879277]
[1769861601631,0.2701078,82943.0,82922.0,0.10879277]
[1769861602035,0.2701078,82942.0,82922.0,0.10879277]
[1769861603144,0.2701078,82942.0,82922.0,0.00015277]
[1769861605941,0.2701078,82942.0,82923.0,0.28569318]
[1769861606141,0.10868,82943.0,82925.0,0.28569218]
[1769861607037,0.10868,82943.0,82930.0,0.012078]
[1769861607343,0.2701078,82942.0,82922.0,0.00015277]
[1769861612548,0.11522562,82941.0,82922.0,0.00015277]
[1769861612736,0.10868,82943.0,82922.0,0.00015277]
[1769861612737,0.2701078,82939.0,82922.0,0.00015277]
[1769861612940,0.38533371,82938.0,82914.0,0.10868]
[1769861613141,0.2701078,82936.0,82902.0,0.28569618]
[1769861613337,0.2701078,82934.0,82898.0,0.012082]
[1769861613542,0.2701078,82932.0,82898.0,0.012082]
[1769861613753,0.2701078,82930.0,82894.0,0.27361418]
[1769861613946,0.2701078,82928.0,82894.0,0.27361418]
[1769861614152,0.2701078,82926.0,82888.0,0.27361418]
[1769861614448,0.2701078,82924.0,82890.0,0.27361418]
[1769861614651,0.2701078,82922.0,82892.0,0.27361418]
[1769861614944,0.2701078,82920.0,82892.0,0.27361418]
[1769861615150,0.2701078,82918.0,82892.0,0.27361418]
[1769861618459,0.29783887,82901.0,82873.0,0.28959588]
[1769861618753,0.94287616,82900.0,82877.0,0.012085]
[1769861619055,0.94287616,82900.0,82872.0,0.05]
[1769861619056,0.10868,82899.0,82873.0,0.012086]
[1769861619256,0.29783887,82889.0,82872.0,0.05]
[1769861619547,0.29783887,82879.0,82840.0,0.012091]
[1769861619752,0.29783887,82877.0,82841.0,0.10868]
[1769861619952,0.64524,82878.0,82828.0,0.31808]
[1769861619953,0.29783887,82869.0,82834.0,0.012092]
[1769861620152,0.28070539,82867.0,82835.0,0.10868]
[1769861620450,0.28070539,82867.0,82837.0,0.28968468]
[1769861620655,8.983e-05,82866.0,82845.0,0.28968468]
[1769861620843,8.983e-05,82866.0,82846.0,0.28968468]
[1769861621151,0.09982858,82867.0,82848.0,0.28968468]
[1769861621368,0.10868,82889.0,82859.0,0.28968468]
[1769861621553,0.10868,82888.0,82861.0,0.28968468]
[1769861621851,0.38938539,82888.0,82861.0,0.28968468]
[1769861622157,0.28079758,82887.0,82849.0,0.28968468]
[1769861622451,0.28079758,82887.0,82846.0,0.28968468]
[1769861622855,0.28079758,82887.0,82842.0,0.10872]
[1769861623049,0.28079758,82887.0,82843.0,0.28968468]
[1769861623856,0.28079758,82887.0,82845.0,0.28968468]
[1769861624052,0.28079758,82887.0,82851.0,0.28968468]
[1769861624254,0.28179758,82887.0,82855.0,0.28968468]
[1769861624459,0.28179758,82887.0,82857.0,0.28968468]
[1769861625960,0.28179758,82887.0,82856.0,0.10872]
[1769861626458,0.28079758,82887.0,82857.0,0.28968468]
[1769861627461,0.28179758,82887.0,82857.0,0.28968468]
[1769861628158,0.28079758,82887.0,82857.0,0.28968468]
[1769861628752,9.219e-05,82887.0,82860.0,0.28968468]
[1769861628952,9.219e-05,82887.0,82860.0,0.54836832]
[1769861629150,9.219e-05,82887.0,82861.0,0.28968468]
[1769861630063,9.219e-05,82887.0,82861.0,0.30177268]
[1769861630257,9.219e-05,82887.0,82866.0,0.28968468]
[1769861630457,9.219e-05,82887.0,82871.0,0.30177068]
[1769861630758,0.28070539,82900.0,82871.0,0.28968468]
[1769861630959,0.28070539,82898.0,82871.0,0.28968468]
[1769861631562,8.188e-05,82897.0,82871.0,0.28968468]
[1769861631860,0.28070539,82896.0,82871.0,0.28968468]
[1769861633561,0.28070539,82896.0,82867.0,0.10872]
[1769861633770,0.28070539,82896.0,82868.0,0.28968468]
[1769861635565,0.28070539,82896.0,82867.0,0.10872]
[1769861636764,0.28170539,82896.0,82867.0,0.10872]
[1769861636965,0.28070539,82894.0,82867.0,0.10872]
[1769861637160,0.28070539,82892.0,82857.0,0.10876]
[1769861637363,0.28070539,82890.0,82857.0,0.10876]
[1769861637568,0.28070539,82888.0,82857.0,0.10876]
[1769861638061,0.28070539,82888.0,82849.0,0.012089]
[1769861638370,0.28070539,82886.0,82849.0,0.28968468]
[1769861638569,0.28070539,82884.0,82849.0,0.28968468]
[1769861639162,0.28070539,82882.0,82848.0,0.10876]
[1769861639365,0.10876,82889.0,82849.0,0.28968468]
[1769861639366,0.28070539,82880.0,82849.0,0.28968468]
[1769861639566,0.28070539,82878.0,82849.0,0.28968468]
[1769861639775,0.28070539,82878.0,82848.0,0.39844468]
[1769861640257,0.28070539,82878.0,82849.0,0.28968468]
[1769861640658,0.28070539,82876.0,82849.0,0.28968468]
[1769861640864,0.10876,82879.0,82851.0,0.28968468]
[1769861641162,0.10876,82878.0,82851.0,0.28968468]
[1769861641759,0.001,82880.0,82858.0,0.28968468]
[1769861641962,0.001,82880.0,82862.0,0.28968468]
[1769861642467,8.188e-05,82881.0,82862.0,0.28968468]
[1769861643876,0.10876,82889.0,82864.0,0.28968468]
[1769861644072,0.12214629,82888.0,82864.0,0.28968468]
[1769861644275,0.12214629,82887.0,82866.0,0.28968468]
[1769861644474,0.12214629,82886.0,82866.0,0.28968468]
[1769861644674,0.12214629,82885.0,82866.0,0.28968468]
[1769861644974,0.10876,82889.0,82866.0,0.28968468]
[1769861645162,0.12219078,82888.0,82866.0,0.28968468]
[1769861645372,0.12219078,82887.0,82866.0,0.28968468]
[1769861645677,0.12219078,82886.0,82866.0,0.28968468]
[1769861645871,0.12219078,82885.0,82866.0,0.28968468]
[1769861646169,0.12219078,82884.0,82868.0,0.28968468]
[1769861646374,0.12219078,82883.0,82868.0,0.28968468]
[1769861646571,0.10876,82889.0,82870.0,0.28968468]
[1769861646775,0.10876,82909.0,82875.0,0.28968468]
[1769861647075,0.27234876,82908.0,82877.0,0.29005604]
[1769861647272,0.27234876,82908.0,82879.0,0.29005604]
[1769861648676,0.27234876,82908.0,82881.0,0.29005604]
[1769861650180,0.27234876,82908.0,82883.0,0.29005604]
[1769861651171,0.27234876,82908.0,82885.0,0.29005604]
[1769861652085,0.27234876,82908.0,82880.0,0.29005604]
[1769861652892,0.27234876,82908.0,82882.0,0.29005604]
[1769861653684,0.27234876,82908.0,82886.0,0.30214004]
[1769861656887,0.10876,82909.0,82886.0,0.30214004]
[1769861657089,0.10876,82909.0,82878.0,0.10876]
[1769861657090,0.10876,82909.0,82890.0,0.29005604]
[1769861657286,0.10876,82909.0,82892.0,0.29005604]
[1769861657878,0.10855265,82909.0,82894.0,0.29005604]
[1769861658489,0.27234876,82908.0,82888.0,0.39881604]
[1769861658888,0.27234876,82908.0,82889.0,0.29005604]
[1769861659085,0.27234876,82908.0,82890.0,0.012084]
[1769861659788,0.27234876,82906.0,82888.0,0.10876]
[1769861664194,0.27334876,82906.0,82888.0,0.10876]
[1769861664993,0.001,82906.0,82889.0,0.29005604]
[1769861665186,0.001,82906.0,82888.0,0.10876]
[1769861665187,0.001,82906.0,82894.0,0.29005604]
[1769861665387,0.10855265,82909.0,82894.0,0.29005604]
[1769861665888,0.001,82906.0,82894.0,0.29005604]
[1769861666497,6.5e-07,82909.0,82896.0,0.29005604]
[1769861666696,0.10872,82918.0,82902.0,0.29005604]
[1769861668799,0.10872,82918.0,82904.0,0.29005604]
[1769861669295,0.27234876,82935.0,82909.0,0.29005604]
[1769861669489,0.27234876,82933.0,82909.0,0.29005604]
[1769861669689,0.27234876,82931.0,82909.0,0.29005604]
[1769861669890,0.27234876,82929.0,82909.0,0.39877604]
[1769861670098,0.11636094,82928.0,82909.0,0.39877604]
[1769861670286,0.11636094,82927.0,82909.0,0.39877604]
[1769861670490,0.11636094,82926.0,82909.0,0.39877604]
[1769861670689,0.27234876,82929.0,82907.0,0.10872]
[1769861670900,0.27234876,82927.0,82902.0,0.10872]
[1769861671101,0.27234876,82925.0,82900.0,0.10872]
[1769861671300,0.27234876,82923.0,82900.0,4.311e-05]
[1769861671900,0.38106876,82924.0,82900.0,0.10872]
[1769861672891,0.38106876,82924.0,82901.0,0.29005604]
[1769861673087,0.38106876,82924.0,82905.0,0.012081]
[1769861673289,0.38106876,82924.0,82905.0,0.30213704]
[1769861674697,0.27234876,82923.0,82905.0,0.30213704]
[1769861674892,0.27234876,82923.0,82905.0,0.012081]
[1769861676103,0.11640126,82922.0,82900.0,0.10872]
[1769861676308,0.27234876,82920.0,82900.0,0.10872]
[1769861677198,0.27737313,82918.0,82893.0,0.10872]
[1769861677497,0.27737313,82916.0,82888.0,0.012084]
[1769861677698,0.27737313,82914.0,82888.0,0.012084]
[1769861677996,0.27737313,82912.0,82888.0,0.012084]
[1769861678391,0.27737313,82912.0,82891.0,0.012083]
[1769861679305,0.27737313,82912.0,82887.0,0.012084]
[1769861679602,0.27737313,82912.0,82887.0,0.28376731]
[1769861679993,0.27737313,82912.0,82890.0,0.012084]
[1769861680400,0.27737313,82912.0,82893.0,0.012083]
[1769861680603,0.27737313,82912.0,82884.0,0.28789256]
[1769861680903,0.27737313,82912.0,82892.0,0.012083]
[1769861681302,0.27737313,82912.0,82894.0,0.012083]
[1769861682498,0.10872,82913.0,82894.0,0.29997556]
[1769861682698,0.10872,82912.0,82894.0,0.28789256]
[1769861682903,0.10872,82912.0,82898.0,0.012082]
[1769861683204,0.28770378,82911.0,82898.0,0.012082]
[1769861683402,0.10872,82912.0,82898.0,0.012082]
[1769861684100,0.10872,82912.0,82901.0,0.28789256]
[1769861684305,0.10872,82919.0,82906.0,0.012081]
[1769861684704,0.10872,82919.0,82903.0,0.28789256]
[1769861685704,0.10872,82919.0,82902.0,0.012082]
[1769861686012,0.28770378,82918.0,82897.0,0.10872]
[1769861687306,0.28770378,82916.0,82897.0,0.10872]
[1769861689002,0.28770378,82914.0,82897.0,0.10872]
[1769861689707,0.28770378,82914.0,82894.0,0.012083]
[1769861690008,0.28770378,82914.0,82892.0,0.28789256]
[1769861690409,0.28770378,82914.0,82891.0,0.012083]
[1769861690608,0.11661852,82913.0,82891.0,0.012083]
[1769861690811,0.28770378,82911.0,82891.0,0.012083]
[1769861691005,0.11661852,82910.0,82891.0,0.012083]
[1769861691204,0.10872,82909.0,82891.0,0.012083]
[1769861692412,0.10872,82909.0,82891.0,0.29997556]
[1769861692600,0.10872,82909.0,82897.0,0.28789256]
[1769861692805,0.10872,82909.0,82899.0,0.012082]
[1769861693002,0.10872,82909.0,82895.0,0.012083]
[1769861693210,0.28770378,82908.0,82888.0,0.012084]
[1769861693617,0.28770378,82908.0,82889.0,0.28789256]
[1769861695016,0.28770378,82908.0,82890.0,0.012084]
[1769861697011,0.28770378,82906.0,82887.0,0.10872]
[1769861697212,0.28770378,82904.0,82887.0,0.10872]
[1769861698615,0.28770378,82902.0,82887.0,0.10872]
[1769861702120,0.10872,82916.0,82894.0,0.28789256]
[1769861702314,0.51085899,82915.0,82897.0,0.012083]
[1769861702622,0.28770378,82913.0,82893.0,0.012083]
[1769861702918,0.11443521,82912.0,82893.0,0.012083]
[1769861703418,0.11443521,82912.0,82893.0,0.29997556]
[1769861704121,0.28770378,82911.0,82893.0,0.29997556]
[1769861704421,0.28770378,82911.0,82893.0,0.012083]
[1769861704808,0.28770378,82911.0,82889.0,0.012084]
[1769861705820,0.28870378,82911.0,82889.0,0.012084]
[1769861706120,0.28870378,82911.0,82891.0,0.012083]
[1769861706814,0.40383113,82910.0,82891.0,0.012083]
[1769861707014,0.28937946,82910.0,82891.0,0.012083]
[1769861707822,0.28937946,82910.0,82891.0,0.28675681]
[1769861708324,0.29037946,82910.0,82891.0,0.28675681]
[1769861708626,0.29037946,82910.0,82891.0,0.27467381]
[1769861709222,0.001,82910.0,82896.0,0.012083]
[1769861709423,0.001,82910.0,82899.0,0.012082]
[1769861709623,0.29037946,82910.0,82899.0,0.012082]
[1769861710317,0.29037946,82910.0,82895.0,0.012083]
[1769861710512,0.28937946,82910.0,82895.0,0.012083]
[1769861711325,0.28937946,82914.0,82895.0,0.28675681]
[1769861711521,0.11444841,82913.0,82895.0,0.28675681]
[1769861711721,0.11444841,82912.0,82895.0,0.28675681]
[1769861711922,0.11444841,82911.0,82895.0,0.28675681]
[1769861712225,0.11444841,82910.0,82895.0,0.28675681]
[1769861712424,0.28937946,82914.0,82895.0,0.28675681]
[1769861712724,0.11444892,82913.0,82895.0,0.28675681]
[1769861712931,0.11444892,82912.0,82895.0,0.28675681]
[1769861713225,0.11444892,82911.0,82895.0,0.28675681]
[1769861713415,0.11444892,82910.0,82895.0,0.28675681]
[1769861713615,0.29037946,82914.0,82895.0,0.28675681]
[1769861713816,0.11445164,82913.0,82895.0,0.28675681]
[1769861714012,0.11445164,82912.0,82895.0,0.28675681]
[1769861714211,0.11445164,82911.0,82895.0,0.28675681]
[1769861714426,0.11445164,82910.0,82895.0,0.28675681]
[1769861714728,0.28937946,82914.0,82895.0,0.28675681]
[1769861714921,0.11446195,82913.0,82895.0,0.28675681]
[1769861715115,0.11446195,82912.0,82895.0,0.28675681]
[1769861715427,0.11446195,82911.0,82895.0,0.28675681]
[1769861715619,0.11446195,82910.0,82895.0,0.28675681]
[1769861715821,0.28937946,82913.0,82895.0,0.28675681]
[1769861716019,0.11448219,82912.0,82895.0,0.28675681]
[1769861716318,0.11448219,82911.0,82895.0,0.28675681]
[1769861716520,0.11448219,82910.0,82895.0,0.28675681]
[1769861716720,0.28937946,82911.0,82895.0,0.012083]
[1769861716923,0.11448918,82910.0,82898.0,0.012082]
[1769861717117,0.28937946,82911.0,82898.0,0.012082]
[1769861717318,0.11449712,82910.0,82898.0,0.012082]
[1769861717627,0.10872,82915.0,82898.0,0.012082]
[1769861717828,0.28937946,82913.0,82898.0,0.012082]
[1769861718024,0.28937946,82925.0,82901.0,0.27467381]
[1769861718215,0.10872,82924.0,82908.0,0.27467381]
[1769861718420,0.28937946,82930.0,82909.0,0.012081]
[1769861718721,0.53752,82929.0,82909.0,0.012081]
[1769861718918,0.28937946,82928.0,82909.0,0.012081]
[1769861719425,0.28937946,82928.0,82909.0,0.28675481]
[1769861720317,0.28937946,82928.0,82912.0,0.01208]
[1769861720515,0.29037946,82928.0,82912.0,0.01208]
[1769861721131,0.28937946,82928.0,82912.0,0.01208]
[1769861721424,0.29037946,82928.0,82912.0,0.01208]
[1769861721725,0.001,82928.0,82912.0,0.28675381]
[1769861721924,0.29037946,82928.0,82909.0,0.012081]
[1769861722628,0.29037946,82928.0,82906.0,0.27467381]
[1769861722629,0.29037946,82928.0,82911.0,0.01208]
[1769861722824,0.001,82928.0,82919.0,0.28675281]
[1769861723129,0.30145646,82933.0,82915.0,0.01208]
[1769861723730,0.28937946,82927.0,82915.0,0.01208]
[1769861723918,0.28937946,82927.0,82911.0,0.012081]
[1769861724124,0.28937946,82927.0,82910.0,0.10872]
[1769861725433,0.28937946,82927.0,82899.0,0.27467381]
[1769861725434,0.28937946,82924.0,82899.0,0.120802]
[1769861725633,0.28937946,82918.0,82899.0,0.10872]
[1769861727528,0.28937946,82916.0,82899.0,0.10872]
[1769861728130,0.28937946,82916.0,82895.0,0.012083]
[1769861732037,0.28937946,82916.0,82895.0,0.15671629]
[1769861732438,0.29037946,82916.0,82895.0,0.15671629]
[1769861734038,0.001,82916.0,82901.0,0.27467381]
[1769861734241,0.001,82916.0,82903.0,0.27467381]
[1769861734537,0.001,82916.0,82906.0,0.012081]
[1769861734738,0.001,82916.0,82903.0,0.28675581]
[1769861735539,0.28937946,82920.0,82903.0,0.28675581]
[1769861737640,0.10872,82919.0,82903.0,0.28675581]
[1769861738731,0.10872,82919.0,82907.0,0.012081]
[1769861738933,0.02606923,82919.0,82908.0,0.2784733]
[1769861741031,0.31209972,82919.0,82907.0,0.012081]
[1769861741235,0.31209972,82919.0,82900.0,0.120802]
[1769861741943,0.28603049,82917.0,82900.0,0.120802]
[1769861743747,0.28603049,82917.0,82900.0,0.012082]
[1769861743946,0.28603049,82917.0,82895.0,0.14463329]
[1769861744147,0.28603049,82915.0,82897.0,0.012083]
[1769861744336,0.28603049,82911.0,82890.0,0.15671629]
[1769861744542,0.28603049,82911.0,82890.0,0.012083]
[1769861744735,0.01208,82912.0,82887.0,0.14463329]
[1769861744736,0.28603049,82909.0,82887.0,0.14463329]
[1769861744939,0.44816,82910.0,82886.0,0.15671729]
[1769861744940,0.28603049,82907.0,82886.0,0.15671729]
[1769861745149,0.28603049,82907.0,82890.0,0.20680281]
[1769861746336,0.28703049,82907.0,82890.0,0.20680281]
[1769861755251,0.28603049,82907.0,82890.0,0.20680281]
[1769861755548,0.28603049,82916.0,82901.0,0.012082]
[1769861755849,0.28603049,82916.0,82906.0,0.20680281]
[1769861756437,0.012079,82923.0,82906.0,0.20680281]
[1769861756438,0.28603049,82921.0,82906.0,0.20680281]
[1769861756638,0.44364,82920.0,82906.0,0.20680281]
[1769861756951,0.28603049,82919.0,82906.0,0.20680281]
[1769861760344,0.28603049,82930.0,82907.0,0.27349677]
[1769861760554,0.10872,82938.0,82921.0,0.27349677]
[1769861760751,0.10872,82938.0,82928.0,0.20680281]
[1769861762048,0.11072,82938.0,82929.0,0.27349677]
[1769861762249,0.39475049,82951.0,82931.0,0.27349677]
[1769861762456,0.28603049,82950.0,82931.0,0.27349677]
[1769861762651,0.28603049,82950.0,82932.0,0.012077]